bitfinex/quotes_SOLUSD_20220113
["timestamp","ask_amount","ask_price","bid_price","bid_amount"]
[1642093869673,1.64999521,152.45,152.36,2.884]
[1642093869875,9.8423,152.44,152.36,2.884]
[1642093870175,16.0923,152.44,152.36,2.884]
[1642093870376,16.3523,152.44,152.36,2.884]
[1642093870675,16.3523,152.44,152.36,2.624]
[1642093870874,10.3523,152.44,152.36,2.624]
[1642093871075,16.3523,152.44,152.34,1.85020559]
[1642093871379,18.00229521,152.44,152.34,1.85020559]
[1642093872175,7.82,152.43,152.34,1.85020559]
[1642093872375,12.4703,152.42,152.34,1.85020559]
[1642093872577,20.37029521,152.42,152.31,49.85840559]
[1642093872777,20.38029521,152.42,152.31,49.85840559]
[1642093872977,8.884,152.42,152.31,50.10840559]
[1642093873177,6.0,152.42,152.32,66.97999521]
[1642093873478,23.17139455,152.46,152.32,73.48999521]
[1642093873678,23.17139455,152.46,152.33,24.46799521]
[1642093873979,23.42139455,152.46,152.34,65.33]
[1642093874177,33.26299455,152.46,152.35,2.624]
[1642093874378,33.52299455,152.46,152.35,2.624]
[1642093874576,33.52299455,152.46,152.35,9.134]
[1642093874780,23.42139455,152.46,152.35,9.134]
[1642093874977,23.17139455,152.46,152.35,2.874]
[1642093875277,6.0,152.46,152.35,2.874]
[1642093875486,57.2509,152.51,152.36,7.82]
[1642093875678,463.0617653,152.54,152.37,25.5584]
[1642093875878,460.4377653,152.54,152.38,7.82]
[1642093876079,460.4377653,152.54,152.39,2.623]
[1642093876279,27.74614311,152.53,152.4,24.3352]
[1642093876482,9.8401,152.51,152.4,24.3352]
[1642093876678,15.8401,152.51,152.39,2.623]
[1642093876879,2.623,152.5,152.38,1.85020559]
[1642093877079,7.82,152.49,152.38,1.85020559]
[1642093877278,2.624,152.48,152.38,1.85020559]
[1642093877480,18.34399521,152.48,152.38,1.85020559]
[1642093877678,18.60399521,152.48,152.36,26.47040559]
[1642093877881,1.64999521,152.47,152.36,26.47040559]
[1642093878079,22.61064569,152.45,152.36,26.47040559]
[1642093878480,30.7706409,152.45,152.36,26.47040559]
[1642093878680,30.7706409,152.45,152.36,24.6202]
[1642093879185,9.8427,152.43,152.36,24.6202]
[1642093879580,16.3527,152.43,152.36,24.6202]
[1642093880181,16.3527,152.43,152.34,2.624]
[1642093880382,16.3527,152.43,152.33,4.47420559]
[1642093881790,16.3527,152.43,152.33,2.624]
[1642093882786,16.3527,152.43,152.33,4.47420559]
[1642093884790,16.3527,152.43,152.34,1.85020559]
[1642093884989,18.9767,152.43,152.34,1.85020559]
[1642093885689,18.7267,152.43,152.34,1.85020559]
[1642093886091,16.1027,152.43,152.34,1.85020559]
[1642093887291,16.3527,152.43,152.34,1.85020559]
[1642093887691,16.3527,152.43,152.32,26.9449]
[1642093887692,16.3527,152.43,152.35,1.85020559]
[1642093887892,6.0,152.43,152.35,1.85020559]
[1642093888095,8.624,152.44,152.35,1.85020559]
[1642093888294,22.61064569,152.45,152.35,2.36020559]
[1642093888494,28.61064569,152.45,152.36,1.64999521]
[1642093888793,28.61064569,152.45,152.36,1.85020559]
[1642093888996,28.61064569,152.45,152.36,2.36020559]
[1642093889795,28.61064569,152.45,152.38,1.85020559]
[1642093889996,28.86064569,152.45,152.38,1.85020559]
[1642093890197,22.86064569,152.45,152.38,1.85020559]
[1642093890798,22.86064569,152.45,152.39,1.85020559]
[1642093891498,28.86064569,152.45,152.39,1.85020559]
[1642093891701,29.12064569,152.45,152.39,1.85020559]
[1642093892637,38.96194569,152.45,152.39,1.85020559]
[1642093892822,38.96194569,152.45,152.38,1.85020559]
[1642093893426,29.12064569,152.45,152.38,1.85020559]
[1642093895126,38.96184569,152.45,152.38,1.85020559]
[1642093899026,38.70184569,152.45,152.38,1.85020559]
[1642093899526,38.70184569,152.45,152.39,1.85020559]
[1642093899728,9.843,152.43,152.39,1.85020559]
[1642093900128,16.093,152.43,152.39,1.85020559]
[1642093900327,16.353,152.43,152.39,1.85020559]
[1642093900732,16.353,152.43,152.38,1.85020559]
[1642093901527,16.093,152.43,152.38,1.85020559]
[1642093901927,6.25,152.43,152.36,26.68160559]
[1642093902330,0.25,152.43,152.36,26.68160559]
[1642093902628,6.0,152.43,152.36,26.68160559]
[1642093903028,0.51,152.43,152.36,26.68160559]
[1642093903528,0.25,152.43,152.36,26.68160559]
[1642093903729,0.25,152.43,152.37,1.85020559]
[1642093904128,16.3518,152.44,152.37,1.85020559]
[1642093905830,16.3518,152.44,152.34,3.73362978]
[1642093906030,16.3518,152.44,152.28,3.42206926]
[1642093906031,0.30517517,152.4,152.31,2.624]
[1642093906231,9.8483,152.36,152.24,2.625]
[1642093906432,25.8723,152.36,152.3,5.55755738]
[1642093906732,2.626,152.35,152.3,5.55755738]
[1642093906930,7.82,152.34,152.3,5.55755738]
[1642093907330,14.07,152.34,152.3,5.55755738]
[1642093907632,14.33,152.34,152.3,5.55755738]
[1642093907829,14.33,152.34,152.24,24.4743]
[1642093908030,14.33,152.34,152.25,2.626]
[1642093908331,9.8499,152.33,152.25,2.626]
[1642093908531,7.82,152.32,152.25,2.626]
[1642093908731,10.446,152.32,152.25,2.626]
[1642093908930,83.93599521,152.32,152.25,2.626]
[1642093909132,1.64999521,152.31,152.25,2.626]
[1642093909333,22.66444793,152.29,152.25,2.626]
[1642093909535,34.69744793,152.29,152.25,2.626]
[1642093909734,34.95744793,152.29,152.25,2.626]
[1642093910135,44.80964793,152.29,152.25,2.626]
[1642093910534,44.80964793,152.29,152.23,0.1]
[1642093911736,46.45964314,152.29,152.23,0.1]
[1642093912436,44.80964793,152.29,152.23,0.1]
[1642093914038,9.8537,152.26,152.23,0.1]
[1642093914236,6.06439993,152.25,152.23,0.1]
[1642093914637,12.57439993,152.25,152.23,0.1]
[1642093915241,12.32439993,152.25,152.23,0.1]
[1642093916440,12.57439993,152.25,152.23,0.1]
[1642093916844,6.06439993,152.25,152.23,0.1]
[1642093917042,2.626,152.34,152.24,65.0]
[1642093917243,2.626,152.38,152.24,67.626]
[1642093917542,7.82,152.39,152.25,24.3054]
[1642093917746,2.626,152.38,152.26,2.626]
[1642093917944,21.14285636,152.37,152.26,2.626]
[1642093918142,65.33,152.36,152.26,2.626]
[1642093918343,21.14285636,152.37,152.26,2.626]
[1642093918344,65.33,152.33,152.26,2.626]
[1642093918543,7.82,152.32,152.26,2.626]
[1642093918743,2.626,152.31,152.26,2.626]
[1642093918944,8.07,152.31,152.26,2.626]
[1642093919149,23.23135876,152.3,152.26,2.626]
[1642093919446,23.49135876,152.3,152.26,2.626]
[1642093919645,29.74135876,152.3,152.26,2.126]
[1642093919846,32.36735876,152.3,152.23,0.1]
[1642093920250,42.21895876,152.3,152.23,0.1]
[1642093921855,41.96895876,152.3,152.23,0.1]
[1642093922051,39.34295876,152.3,152.23,0.1]
[1642093923353,39.59295876,152.3,152.23,0.1]
[1642093923757,9.8548,152.26,152.23,0.1]
[1642093923956,16.3648,152.26,152.23,0.1]
[1642093926158,16.1048,152.26,152.23,0.1]
[1642093927586,16.3648,152.26,152.23,0.1]
[1642093928585,74.79999521,152.25,152.15,2.626]
[1642093928788,9.8595,152.2,152.1,2.628]
[1642093928989,16.1095,152.2,152.08,2.628]
[1642093929189,2.629,152.19,152.08,2.628]
[1642093929592,8.879,152.19,152.08,2.628]
[1642093929993,9.139,152.19,152.08,2.628]
[1642093930191,9.8604,152.16,152.08,2.628]
[1642093930591,16.3704,152.16,152.08,2.628]
[1642093932392,16.3704,152.16,152.07,24.4337]
[1642093932797,16.3704,152.16,152.04,2.629]
[1642093933000,16.3704,152.16,152.04,26.9446]
[1642093933395,16.1104,152.16,152.04,26.9446]
[1642093934097,16.1104,152.16,152.04,27.2046]
[1642093934296,16.1104,152.16,152.04,26.9446]
[1642093934898,16.1104,152.16,152.04,26.6946]
[1642093935099,9.8628,152.12,152.04,26.6946]
[1642093935600,16.3728,152.12,152.04,26.6946]
[1642093935797,6.51,152.12,152.04,26.6946]
[1642093935999,0.51,152.12,152.04,26.6946]
[1642093936201,6.51,152.12,152.04,26.6946]
[1642093936399,6.25,152.12,152.04,26.6946]
[1642093936599,6.51,152.12,152.04,26.6946]
[1642093936798,0.51,152.12,152.04,26.6946]
[1642093936999,6.0,152.12,152.04,26.6946]
[1642093937402,2.63,152.18,152.04,26.9546]
[1642093937627,7.82,152.21,152.05,7.82]
[1642093937827,7.82,152.21,152.06,27.0715]
[1642093938128,7.82,152.21,152.06,35.4015]
[1642093938626,17.29927331,152.2,152.06,35.4015]
[1642093938826,27.15657331,152.2,152.06,41.4015]
[1642093939025,33.40657331,152.2,152.06,41.4015]
[1642093939226,27.40657331,152.2,152.06,41.4015]
[1642093939526,27.40657331,152.2,152.06,34.8915]
[1642093939527,35.05656852,152.2,152.06,34.8915]
[1642093939727,2.629,152.19,152.06,34.8915]
[1642093939929,9.8623,152.13,152.06,2.629]
[1642093940328,16.1123,152.13,152.06,2.629]
[1642093940529,16.3723,152.13,152.06,2.629]
[1642093940927,38.67874746,152.13,152.06,2.629]
[1642093941328,44.25674746,152.13,152.06,2.129]
[1642093941728,9.8686,152.06,152.0,5.121687]
[1642093941930,16.2576,152.06,152.0,5.121687]
[1642093942129,22.7676,152.06,152.0,5.121687]
[1642093942328,20.54590141,152.05,152.0,5.121687]
[1642093942532,27.05590141,152.05,152.0,5.121687]
[1642093942730,37.0,152.03,151.93,5.55755738]
[1642093942932,37.0,152.03,151.88,10.45]
[1642093942933,9.8751,151.98,151.9,5.55755738]
[1642093943333,16.3851,151.98,151.9,5.55755738]
[1642093943931,10.1351,151.98,151.9,5.55755738]
[1642093944131,9.8751,151.98,151.9,5.55755738]
[1642093944331,9.8719,152.0,151.9,5.55755738]
[1642093944531,9.8719,152.0,151.91,66.97999521]
[1642093944735,9.8719,152.0,151.93,13.61682841]
[1642093944930,2.632,152.05,151.93,13.61682841]
[1642093945133,22.23312876,152.06,151.94,2.63]
[1642093945345,22.23312876,152.06,151.94,4.27999521]
[1642093945542,22.23312876,152.06,151.95,1.64999521]
[1642093945744,17.6882,152.08,151.95,1.64999521]
[1642093945943,17.6882,152.08,151.96,2.63]
[1642093946739,17.6882,152.08,151.96,4.27999521]
[1642093946944,17.6882,152.08,151.94,4.27999521]
[1642093947343,12.4973,152.09,151.95,73.15]
[1642093947550,9.8673,152.09,151.96,2.63]
[1642093947745,9.8673,152.09,151.96,67.96]
[1642093947942,9.8673,152.09,151.96,68.22]
[1642093948142,9.8673,152.09,151.96,68.47]
[1642093948945,15.8673,152.09,151.96,68.47]
[1642093949347,15.8673,152.09,151.97,7.82]
[1642093949548,6.0,152.09,151.97,8.33]
[1642093949947,6.0,152.11,151.98,65.33]
[1642093950149,2.63,152.14,151.99,7.82]
[1642093950352,6.0,152.12,151.99,7.82]
[1642093950551,6.0,152.12,152.0,65.33]
[1642093950753,22.64379876,152.11,152.0,65.33]
[1642093950952,28.89379876,152.11,152.0,2.63]
[1642093951156,28.89379876,152.11,151.99,0.26]
[1642093951157,2.63,152.1,151.99,0.26]
[1642093951557,9.14,152.1,151.97,2.89]
[1642093952252,9.868,152.08,151.97,2.89]
[1642093952454,10.378,152.08,151.97,2.63]
[1642093952653,2.63,152.1,151.98,7.82]
[1642093952852,22.64379876,152.11,151.99,2.63]
[1642093953055,0.26,152.1,152.0,7.82]
[1642093953254,0.26,152.1,152.01,2.63]
[1642093953455,2.63,152.1,151.98,7.82]
[1642093953857,2.89,152.1,151.98,7.82]
[1642093954456,2.89,152.1,151.95,10.45]
[1642093954457,3.14,152.1,151.95,10.45]
[1642093954657,9.14,152.1,151.95,16.71]
[1642093955255,19.0066,152.1,151.95,10.71]
[1642093955456,26.8266,152.1,151.95,10.45]
[1642093955656,26.8266,152.1,151.95,2.63]
[1642093956055,36.97758565,152.1,151.95,2.63]
[1642093956263,0.31156802,152.05,151.95,2.63]
[1642093956489,9.8724,152.01,151.95,2.63]
[1642093956690,24.10191166,152.0,151.95,2.63]
[1642093956889,0.51,152.01,151.89,57.1273]
[1642093957093,0.25,152.0,151.89,57.1273]
[1642093957889,0.25,152.0,151.89,54.4953]
[1642093957890,2.632,151.99,151.89,54.4953]
[1642093958091,0.25,151.99,151.89,57.1273]
[1642093958297,0.25,151.99,151.89,49.3073]
[1642093958691,0.25,151.99,151.89,2.632]
[1642093958896,10.1234,151.99,151.89,2.632]
[1642093959092,1.64999521,151.98,151.89,2.632]
[1642093959496,7.89999521,151.98,151.89,2.632]
[1642093959693,2.632,151.97,151.89,2.632]
[1642093959892,2.632,151.97,151.84,0.09]
[1642093960093,9.8756,151.96,151.85,2.633]
[1642093960293,9.8756,151.96,151.84,2.723]
[1642093960494,4.28299521,151.95,151.84,0.09]
[1642093960893,10.79299521,151.95,151.84,0.09]
[1642093961093,21.97422743,151.94,151.84,0.09]
[1642093961295,2.633,151.93,151.84,0.09]
[1642093961502,10.53299521,151.93,151.84,0.09]
[1642093961693,0.30968633,151.91,151.84,0.09]
[1642093961894,2.633,151.9,151.84,0.09]
[1642093962093,2.883,151.9,151.84,0.09]
[1642093962294,3.143,151.9,151.84,0.09]
[1642093962497,0.51,151.9,151.84,0.09]
[1642093962696,6.0,151.93,151.84,0.09]
[1642093962895,6.0,151.93,151.85,2.633]
[1642093963097,7.82,151.98,151.85,2.633]
[1642093963697,20.61494211,151.97,151.85,2.633]
[1642093963895,2.633,151.97,151.85,2.633]
[1642093964497,2.633,151.97,151.85,68.213]
[1642093964696,2.633,151.97,151.85,67.963]
[1642093964896,21.84128987,151.97,151.85,68.213]
[1642093965098,21.84128987,151.97,151.85,2.893]
[1642093965298,7.82,152.0,151.85,10.713]
[1642093965498,13.82,152.0,151.85,10.963]
[1642093965696,14.07,152.0,151.85,10.963]
[1642093965897,6.25,152.0,151.85,16.963]
[1642093966099,0.25,152.0,151.85,10.963]
[1642093966297,20.79983369,151.99,151.85,10.963]
[1642093966499,27.04983369,151.99,151.85,10.963]
[1642093966703,21.04983369,151.99,151.85,10.963]
[1642093967098,21.30983369,151.99,151.85,16.963]
[1642093967298,21.30983369,151.99,151.85,10.703]
[1642093967499,21.30983369,151.99,151.85,10.453]
[1642093967700,21.30983369,151.99,151.85,10.703]
[1642093967999,0.51,151.99,151.85,10.703]
[1642093968398,3.142,152.01,151.85,16.703]
[1642093968598,3.142,152.01,151.85,10.963]
[1642093968798,4.79199521,152.01,151.85,10.963]
[1642093968999,23.20730771,152.0,151.85,10.963]
[1642093969401,23.45730771,152.0,151.85,16.963]
[1642093969600,2.632,152.01,151.86,65.33]
[1642093969800,2.632,152.03,151.87,7.82]
[1642093970003,8.632,152.03,151.87,55.0279]
[1642093970301,1.64999521,152.02,151.87,55.0279]
[1642093970502,22.06814164,152.01,151.87,55.0279]
[1642093971002,22.32814164,152.01,151.87,54.7679]
[1642093971606,22.57814164,152.01,151.87,54.7679]
[1642093972207,22.57814164,152.01,151.88,2.632]
[1642093972408,24.22813685,152.01,151.88,10.452]
[1642093972607,0.32047038,151.98,151.84,7.91]
[1642093972806,2.633,151.97,151.84,0.09]
[1642093973007,3.143,151.97,151.84,0.09]
[1642093973207,4.79299521,151.97,151.84,0.09]
[1642093973606,2.893,151.97,151.84,0.09]
[1642093974008,0.26,151.97,151.85,2.633]
[1642093974411,0.26,151.98,151.85,2.633]
[1642093974608,2.633,151.97,151.85,2.633]
[1642093974807,2.633,151.98,151.85,2.633]
[1642093975007,3.143,151.98,151.85,2.633]
[1642093975632,0.51,151.98,151.85,2.633]
[1642093976032,0.25,151.98,151.85,2.633]
[1642093976233,2.883,151.99,151.85,2.633]
[1642093976432,2.883,151.99,151.85,2.893]
[1642093976634,4.53299521,151.99,151.85,2.893]
[1642093977036,2.883,151.99,151.85,2.633]
[1642093977236,9.46999521,151.98,151.85,2.633]
[1642093977436,2.93482309,151.97,151.84,0.09]
[1642093977636,7.82,151.96,151.84,0.09]
[1642093977935,2.633,151.95,151.84,0.09]
[1642093978135,30.87733848,151.94,151.84,0.09]
[1642093978337,2.633,151.93,151.84,0.09]
[1642093978536,16.703,151.93,151.84,0.09]
[1642093978735,1.64999521,151.92,151.84,0.09]
[1642093978936,9.88,151.88,151.84,0.09]
[1642093979135,2.634,151.87,151.84,0.09]
[1642093979335,23.86858983,151.86,151.84,0.09]
[1642093979638,24.37858983,151.86,151.84,0.09]
[1642093980335,0.51,151.86,151.84,0.09]
[1642093980535,2.634,151.9,151.84,0.09]
[1642093980738,8.633,151.92,151.84,0.09]
[1642093980936,7.82,151.93,151.84,0.09]
[1642093981134,2.633,151.96,151.84,0.09]
[1642093981135,7.82,151.96,151.84,0.09]
[1642093981338,27.4936436,151.96,151.85,2.633]
[1642093981737,37.3690436,151.96,151.85,1.633]
[1642093981935,2.633,151.95,151.84,0.09]
[1642093982339,2.633,151.95,151.84,1.73999521]
[1642093982740,2.633,151.95,151.84,0.09]
[1642093982741,2.883,151.95,151.84,0.09]
[1642093983138,12.7589,151.95,151.84,0.09]
[1642093983340,10.1259,151.95,151.84,0.09]
[1642093983539,9.8759,151.95,151.84,0.09]
[1642093983743,30.1266436,151.96,151.84,0.09]
[1642093983942,27.4936436,151.96,151.85,2.633]
[1642093984343,37.6285436,151.96,151.85,2.633]
[1642093984748,39.27853881,151.96,151.85,2.633]
[1642093984944,45.27853881,151.96,151.85,2.633]
[1642093985145,2.633,151.95,151.85,2.633]
[1642093985546,11.52659521,151.94,151.85,2.633]
[1642093985947,18.03659521,151.94,151.85,2.633]
[1642093986347,2.15999521,151.94,151.85,2.633]
[1642093986549,0.25,151.94,151.85,2.633]
[1642093986747,0.25,151.94,151.85,5.91642421]
[1642093986948,19.6736436,151.96,151.85,2.633]
[1642093987848,19.6736436,151.96,151.86,1.64999521]
[1642093988049,19.6736436,151.96,151.87,2.633]
[1642093989150,19.9236436,151.96,151.87,2.633]
[1642093989349,19.6736436,151.96,151.87,2.633]
[1642093989853,2.633,151.99,151.87,2.633]
[1642093990051,2.633,151.99,151.87,8.633]
[1642093990253,2.633,151.99,151.87,2.633]
[1642093990653,2.633,151.99,151.86,2.632]
[1642093990852,17.93669266,151.98,151.86,2.632]
[1642093991053,18.19669266,151.98,151.86,2.892]
[1642093991651,18.44669266,151.98,151.86,2.892]
[1642093992050,17.93669266,151.98,151.86,2.892]
[1642093992454,17.93669266,151.98,151.86,68.222]
[1642093992652,17.93669266,151.98,151.87,1.64999521]
[1642093993054,2.632,152.01,151.88,7.82]
[1642093993253,32.9027,152.06,151.9,65.33]
[1642093993254,2.632,152.06,151.9,65.33]
[1642093993458,2.63,152.1,151.91,10.45]
[1642093993656,12.4961,152.1,151.92,45.6924]
[1642093993881,12.4961,152.1,151.93,10.45]
[1642093994054,19.23282251,152.09,151.93,10.45]
[1642093994256,2.63,152.08,151.93,10.45]
[1642093994454,8.63,152.08,151.93,10.45]
[1642093994656,2.63,152.08,151.93,10.45]
[1642093994856,8.63,152.08,151.93,10.45]
[1642093995057,18.497,152.08,151.93,10.45]
[1642093995455,65.33,152.07,151.93,10.45]
[1642093995656,2.63,152.06,151.93,10.45]
[1642093995855,67.96,152.06,151.93,10.45]
[1642093996056,74.22,152.06,151.93,10.45]
[1642093996255,9.8691,152.05,151.93,10.45]
[1642093996456,10.1291,152.05,151.93,10.45]
[1642093996756,10.3791,152.05,151.93,10.45]
[1642093996955,0.25,152.05,151.93,10.45]
[1642093997355,6.0,152.06,151.93,10.45]
[1642093997559,8.63,152.08,151.93,10.45]
[1642093997758,2.63,152.08,151.93,10.45]
[1642093997957,8.63,152.08,151.93,10.45]
[1642093998158,9.8678,152.07,151.93,10.45]
[1642093998459,2.63,152.06,151.93,10.45]
[1642093998860,9.14,152.06,151.93,10.45]
[1642093999060,9.8686,152.05,151.93,2.63]
[1642093999260,2.63,152.04,151.88,3.75227972]
[1642093999459,7.82,152.03,151.88,3.75227972]
[1642093999659,7.82,152.03,151.87,3.75227972]
[1642093999860,2.632,152.02,151.87,3.75227972]
[1642094000062,7.82,152.01,151.87,3.75227972]
[1642094000260,2.632,152.0,151.87,3.75227972]
[1642094000463,2.882,152.0,151.87,3.75227972]
[1642094000661,9.142,152.0,151.86,59.196]
[1642094001468,2.882,152.0,151.87,4.05535855]
[1642094001663,0.25,152.0,151.87,13.52535376]
[1642094001862,22.51227635,152.02,151.87,14.03535376]
[1642094002062,22.51227635,152.02,151.87,11.87535855]
[1642094002867,22.77227635,152.02,151.87,11.87535855]
[1642094003068,22.51227635,152.02,151.88,2.632]
[1642094003266,22.51227635,152.02,151.89,73.15]
[1642094003466,22.51227635,152.02,151.9,2.632]
[1642094003667,7.82,152.04,151.9,4.28199521]
[1642094003868,7.82,152.04,151.9,10.79199521]
[1642094004068,7.82,152.04,151.9,76.12199521]
[1642094004469,8.33,152.04,151.9,74.472]
[1642094004668,18.03873871,152.03,151.9,2.632]
[1642094005066,2.632,152.02,151.9,2.632]
[1642094005467,9.142,152.02,151.9,2.632]
[1642094006267,16.962,152.02,151.89,2.632]
[1642094006469,16.962,152.02,151.88,22.7759]
[1642094006669,9.871,152.01,151.88,22.7759]
[1642094006870,2.632,152.0,151.88,22.7759]
[1642094007070,6.25,152.0,151.88,22.7759]
[1642094007470,6.25,152.0,151.89,0.96251584]
[1642094007671,0.25,152.0,151.88,90.01589521]
[1642094007873,0.25,152.0,151.89,2.632]
[1642094008071,0.25,152.0,151.89,3.142]
[1642094008273,24.28873871,152.03,151.89,10.962]
[1642094008472,24.28873871,152.03,151.89,12.61199521]
[1642094008673,24.28873871,152.03,151.89,12.36199521]
[1642094008903,24.28873871,152.03,151.89,10.452]
[1642094009073,24.28873871,152.03,151.9,1.64999521]
[1642094009275,24.28873871,152.03,151.91,2.632]
[1642094009572,24.28873871,152.03,151.91,68.212]
[1642094010175,18.03873871,152.03,151.91,68.212]
[1642094010384,18.03873871,152.03,151.91,68.472]
[1642094010577,18.03873871,152.03,151.91,3.142]
[1642094010776,18.03873871,152.03,151.91,2.632]
[1642094010977,10.452,152.02,151.91,2.632]
[1642094011378,16.452,152.02,151.91,2.632]
[1642094011580,16.702,152.02,151.91,2.632]
[1642094011778,9.8708,152.01,151.91,2.632]
[1642094011979,10.3808,152.01,151.9,24.6327]
[1642094012178,0.51,152.01,151.9,24.6327]
[1642094012579,0.25,152.01,151.9,24.6327]
[1642094013281,16.962,152.02,151.9,24.6327]
[1642094013481,26.8322,152.02,151.9,24.6327]
[1642094013884,1.64999521,152.01,151.87,2.632]
[1642094014084,1.64999521,152.01,151.86,28.11767972]
[1642094014085,10.452,152.0,151.86,3.75227972]
[1642094014483,1.64999521,151.99,151.86,3.75227972]
[1642094014683,9.8745,151.95,151.86,3.75227972]
[1642094014887,2.633,151.94,151.84,3.84227972]
[1642094015083,10.79299521,151.94,151.84,3.84227972]
[1642094015886,9.8771,151.91,151.84,3.84227972]
[1642094016092,10.3871,151.91,151.84,3.84227972]
[1642094016289,10.3871,151.91,151.84,0.09]
[1642094016290,2.633,151.9,151.84,0.09]
[1642094016517,9.143,151.9,151.84,0.09]
[1642094016719,10.79299521,151.9,151.84,0.09]
[1642094016916,23.56040284,151.89,151.84,0.09]
[1642094017118,9.8808,151.87,151.84,0.09]
[1642094017617,16.1308,151.87,151.84,0.09]
[1642094017818,16.3908,151.87,151.84,0.09]
[1642094019120,2.634,151.86,151.84,0.09]
[1642094019320,9.8819,151.85,151.84,0.09]
[1642094019520,16.1319,151.85,151.75,3.75227972]
[1642094019721,10.1319,151.85,151.75,3.75227972]
[1642094020020,10.1319,151.85,151.73,25.4638]
[1642094020021,16.1319,151.85,151.73,29.21607972]
[1642094020322,18.7659,151.85,151.73,29.21607972]
[1642094020522,18.7659,151.85,151.73,6.38627972]
[1642094021220,15.8819,151.85,151.73,2.634]
[1642094021426,6.0,151.85,151.74,1.64999521]
[1642094021821,73.15,151.88,151.74,1.64999521]
[1642094022021,79.15,151.88,151.75,2.634]
[1642094022222,73.15,151.88,151.75,2.634]
[1642094022522,79.15,151.88,151.75,2.634]
[1642094022922,9.8804,151.86,151.73,2.634]
[1642094023323,16.1404,151.86,151.73,2.634]
[1642094023521,16.3904,151.86,151.73,2.634]
[1642094023922,81.7204,151.86,151.73,2.634]
[1642094024121,9.8832,151.82,151.72,26.042]
[1642094024323,9.8832,151.82,151.71,6.38627972]
[1642094024522,84.3572,151.82,151.71,3.75227972]
[1642094024925,84.3572,151.82,151.7,0.32947051]
[1642094025327,9.8853,151.79,151.7,0.32947051]
[1642094025525,10.3953,151.79,151.7,0.32947051]
[1642094026326,16.3953,151.79,151.7,0.32947051]
[1642094026525,9.8953,151.79,151.7,0.32947051]
[1642094027130,15.8953,151.79,151.7,0.32947051]
[1642094027334,9.8953,151.79,151.7,0.32947051]
[1642094027530,15.8953,151.79,151.7,0.32947051]
[1642094027731,18.5313,151.79,151.7,0.32947051]
[1642094028535,83.8613,151.79,151.7,0.32947051]
[1642094028733,9.8885,151.74,151.7,0.32947051]
[1642094028933,20.46445773,151.73,151.7,0.32947051]
[1642094029135,20.46445773,151.73,151.63,1.86739674]
[1642094029335,26.97445773,151.73,151.63,1.86739674]
[1642094029535,36.44445294,151.73,151.63,1.86739674]
[1642094029736,34.79445773,151.73,151.63,1.86739674]
[1642094029935,1.64999521,151.72,151.63,1.86739674]
[1642094030137,7.82,151.71,151.59,1.86739674]
[1642094030540,8.33,151.71,151.59,7.86739674]
[1642094030738,8.33,151.71,151.59,1.86739674]
[1642094031143,18.2197,151.71,151.59,1.86739674]
[1642094031339,18.2197,151.71,151.58,26.184]